Cogmind - Beta 10.2 @@@ ROGUE MODE // 2021.06.28 @ 13:41:45 Player: Kenzurith Result: Destroyed by Enhanced Grunt with Neutron Cannon Performance ------------- Evolutions (3) 1500 Regions Visited (7) 1400 Robots Destroyed (17) 85 Value Destroyed (408) 408 Prototype IDs (217) 4340 Alien Tech Used (0) 0 Bonus (3300) 3300 TOTAL SCORE: 11033 Bonus ------- Met Data Miner 300 Used Data Conduit 3000 Cogmind --------- Core Integrity 0/700 Matter 280/300 Energy 37/100 System Corruption 0% Temperature Cool (12) Movement Core (150) Ox2 Location -7/Data Miner Parts ------- > --- POWER (1) -------- (None) > --- PROPULSION (5) --- (None) > --- UTILITY (5) ------ Medium Storage Unit Advanced Signal Interpreter > --- WEAPON (2) ------- (None) > --- INVENTORY (8) ---- Improved Flight Unit Large Storage Unit Makeshift Sensor Array Propulsion Shielding System Mapper Quantum Router Light EM Pulse Cannon Improved EM Pulse Cannon Peak State ------------ > --- POWER ------------ Micro Nuclear Core > --- PROPULSION ------- Improved Treads Improved Treads Improved Treads Advanced Treads Carbon-fiber Leg > --- UTILITY ---------- Large Storage Unit Large Storage Unit Makeshift Sensor Array Advanced Signal Interpreter Advanced Targeting Computer > --- WEAPON ----------- Minigun Great Axe > --- INVENTORY -------- Light Nuclear Core Improved Hover Unit Improved Hover Unit Improved Flight Unit Improved Heat Sink Medium Storage Unit Advanced Weight Redist. System Kinecellerator Propulsion Shielding Improved Medium Armor Plating Quantum Router Light EM Pulse Cannon Improved EM Pulse Cannon Advanced Assault Cannon Advanced Assault Cannon [Rating: 40] Favorites ----------- Power Light Nuclear Core Engine Light Ion Engine Power Core Light Nuclear Core Propulsion Improved Treads Treads Improved Treads Leg Carbon-fiber Leg Hover Unit Improved Hover Unit Flight Unit Improved Flight Unit Utility Large Storage Unit Device Makeshift Sensor Array Storage Large Storage Unit Processor Advanced Targeting Computer Hackware Hacking Suite Protection Propulsion Shielding Weapon Improved Assault Rifle Energy Gun EM Shotgun Energy Cannon Light EM Pulse Cannon Ballistic Gun Improved Assault Rifle Ballistic Cannon Advanced Assault Cannon Slashing Weapon Great Axe Build | -11 -10 -9 -8 -7 -7 -7 -7 ------- Run | Scr Mat Mat Mat Fac Low Low Dat Slots Evolved 6 | . . 2 2 2 . . . Power . | . . . . . . . . Propulsion 3 | . . 1 . 2 . . . Utility 3 | . . 1 2 . . . . Weapon . | . . . . . . . . Parts Attached 43 | . 12 6 4 9 2 4 6 Power 5 | . 3 . . . . 1 1 Engine 2 | . 2 . . . . . . Core 3 | . 1 . . . . 1 1 Reactor . | . . . . . . . . Propulsion 15 | . 4 1 . 7 . 1 2 Treads 6 | . . . . 6 . . . Leg 2 | . 1 . . . . 1 . Wheel . | . . . . . . . . Hover 6 | . 3 1 . . . . 2 Flight 1 | . . . . 1 . . . Utility 13 | . 2 3 3 2 2 . 1 Device 2 | . 1 . . . 1 . . Storage 6 | . 1 2 . 2 . . 1 Processor 2 | . . . 1 . 1 . . Hackware 2 | . . . 2 . . . . Protection 1 | . . 1 . . . . . Artifact . | . . . . . . . . Weapon 10 | . 3 2 1 . . 2 2 Energy Gun 2 | . 2 . . . . . . Energy Cannon 1 | . 1 . . . . . . Ballistic Gun 5 | . . 2 1 . . 1 1 Ballistic Cannon 1 | . . . . . . 1 . Launcher . | . . . . . . . . Special Weapon . | . . . . . . . . Impact Weapon . | . . . . . . . . Slashing Weapon 1 | . . . . . . . 1 Piercing Weapon . | . . . . . . . . Special Melee Weapon . | . . . . . . . . Unidentified Prototypes 2 | . . 1 . 1 . . . Parts Lost 17 | . 1 . . . . 4 12 Power 3 | . . . . . . 1 2 Propulsion 9 | . 1 . . . . 1 7 Utility 1 | . . . . . . . 1 Weapon 4 | . . . . . . 2 2 Highest Loss Streak 12 | . 1 . . . . 4 12 Average Slot Usage (%) 96 | . 93 95 96 95 100 99 92 Engine 1 | . 8 . . . . . . Core 6 | . 5 11 9 7 7 7 6 Treads 22 | . . . . 32 38 31 27 Leg 4 | . 12 . . . . 5 6 Hover 6 | . 15 33 27 . . . . Device 6 | . 10 11 6 . 2 7 6 Storage 13 | . 14 11 9 10 15 15 14 Processor 8 | . . . 2 7 10 15 14 Hackware 4 | . . . 14 15 8 . . Protection 1 | . . 9 9 4 . . . Energy Gun 1 | . 9 . . . . . . Ballistic Gun 11 | . 13 15 18 15 15 7 4 Ballistic Cannon 1 | . . . . . . 5 4 Naked Turns . | . . . . . . . . Heaviest Build 53 | 13 18 21 21 43 48 53 53 Greatest Support 114 | 20 20 24 24 114 114 114 91 Greatest Overweight (x) 2 | . 1 . . . . . 2 Average Overweight (x) . | . . . . . . . . Largest Inventory Capacity 20 | . 8 14 8 16 16 16 20 Average Capacity 12 | . 6 8 8 12 16 16 15 Most Carried 16 | . 8 8 8 14 15 15 16 Average Carried 11 | . 5 7 7 10 14 13 14 Final Capacity 16 | 6 8 8 8 16 16 16 8 Final Carried 15 | 6 8 8 8 14 14 15 8 Class Distribution -------------------- 72% | Mutant 27% | Hacker-Mutant Dominant Class ---------------- Mutant | -10/Materials Mutant | -9/Materials Mutant | -8/Materials Hacker-Mutant | -7/Factory Hacker-Mutant | -7/Lower Caves Mutant | -7/Lower Caves Mutant | -7/Data Miner Resources | -11 -10 -9 -8 -7 -7 -7 -7 ----------- Run | Scr Mat Mat Mat Fac Low Low Dat Matter Collected 719 | 200 151 . 94 . 56 208 10 Remotely . | . . . . . . . . Salvage Created 588 | . 400 . 14 . . 154 20 Parts 27 | . 21 . 2 . . 2 2 Haulers Intercepted 2 | . 2 . . . . . . Recyclers Shooed 1 | . 1 . . . . . . Parts Field Recycled . | . . . . . . . . Retrieved Matter . | . . . . . . . . Parts Self-Destructed 2 | . . . . . 1 1 . Prevented . | . . . . . . . . Kills | -11 -10 -9 -8 -7 -7 -7 -7 ------- Run | Scr Mat Mat Mat Fac Low Low Dat Combat Hostiles Destroyed 13 | . 10 . . . . 3 . Guns 8 | . 5 . . . . 3 . Cannons 2 | . 2 . . . . . . AOE 2 | . 2 . . . . . . Classes Destroyed 4 | . 3 . 1 . . . . Hauler 2 | . 2 . . . . . . Operator 1 | . . . 1 . . . . Swarmer 5 | . 5 . . . . . . Grunt 8 | . 5 . . . . 3 . Best Kill Streak 5 | . 5 . 1 . . 2 1 Combat Bots Only 5 | . 5 . . . . 2 . Max Kills in Single Turn 2 | . 2 . 1 . . 1 1 Gunslinging . | . . . . . . . . Exploded 1 | . 1 . . . . . . Melee . | . . . . . . . . Uniques/NPCs Destroyed 1 | . . . . . . . 1 Data Miner (-7/Data Miner) Combat | -11 -10 -9 -8 -7 -7 -7 -7 -------- Run | Scr Mat Mat Mat Fac Low Low Dat Damage Taken 3390 | . 381 91 135 . . 1149 1634 Core 877 | . 103 33 14 . . 149 578 Absorbed by Shields . | . . . . . . . . Core Remaining (%) 86 | 100 58 91 97 . . . . Volleys Fired 64 | . 37 3 1 . . 23 . Largest 2 | . 2 2 2 . . 2 . Hottest 90 | . 90 46 46 . . 48 . Shots Fired 99 | . 56 6 2 . . 35 . Gun 87 | . 44 6 2 . . 35 . Cannon 12 | . 12 . . . . . . Launcher . | . . . . . . . . Special . | . . . . . . . . Kinetic 55 | . 12 6 2 . . 35 . Thermal . | . . . . . . . . Explosive . | . . . . . . . . Electromagnetic 44 | . 44 . . . . . . Robot Hit Streak 25 | . 10 3 5 . . 25 . Robot Miss Streak 3 | . 3 1 . . . 1 . Penetration Max . | . . . . . . . . Secondary Targets . | . . . . . . . . Shots Hit Robots 79 | . 39 4 2 . . 33 1 Core Hits 32 | . 20 . 2 . . 9 1 Critical Hits 1 | . . . . . . 1 . Critical Kills . | . . . . . . . . Critical Parts Destroyed 1 | . . . . . . 1 . Melee Attacks 1 | . . . . . . . 1 Impact . | . . . . . . . . Slashing 1 | . . . . . . . 1 Piercing . | . . . . . . . . Sneak Attacks 1 | . . . . . . . 1 Combat Hostiles . | . . . . . . . . Follow-up Attacks . | . . . . . . . . Damage Inflicted 1331 | . 688 40 27 . . 445 131 Guns 802 | . 291 40 27 . . 444 . Cannons 225 | . 225 . . . . . . Explosions 172 | . 172 . . . . . . Melee 131 | . . . . . . . 131 Ramming 1 | . . . . . . 1 . Kinetic 582 | . 71 40 27 . . 444 . Thermal 172 | . 172 . . . . . . Explosive . | . . . . . . . . Electromagnetic 445 | . 445 . . . . . . Impact . | . . . . . . . . Slashing 131 | . . . . . . . 131 Piercing . | . . . . . . . . Highest Corruption . | . . . . . . . . Average Corruption . | . . . . . . . . Corruption Purged . | . . . . . . . . Overload Shots . | . . . . . . . . Overflow Damage 15 | . 15 . . . . . . Projectiles . | . . . . . . . . Explosions 15 | . 15 . . . . . . Melee . | . . . . . . . . Knockbacks . | . . . . . . . . Impact . | . . . . . . . . Kinetic . | . . . . . . . . Secondary . | . . . . . . . . Self-Inflicted Damage 53 | . 53 . . . . . . Shots 2 | . 2 . . . . . . Rammed 1 | . . . . . . 1 . Targets Rammed 1 | . . . . . . 1 . Kicked . | . . . . . . . . Crushed . | . . . . . . . . Highest Temperature 33 | . 26 . 12 . . 33 . Average Temperature 12 | . 13 . 12 . . 12 . Received Heat Transfer 1095 | . 141 18 81 . . 639 216 Siege Activations . | . . . . . . . . Robots Corrupted 1 | . 1 . . . . . . Combat Hostiles 1 | . 1 . . . . . . Parts Fried 4 | . 4 . . . . . . Impact Corruptions . | . . . . . . . . Robots Melted . | . . . . . . . . Combat Hostiles . | . . . . . . . . Parts Melted . | . . . . . . . . Heat Transferred 300 | . 300 . . . . . . Parts Sabotaged . | . . . . . . . . Parts Stolen . | . . . . . . . . Parts Stripped . | . . . . . . . . Power Chain Reactions 2 | . 2 . . . . . . Missiles Intercepted . | . . . . . . . . Alert | -11 -10 -9 -8 -7 -7 -7 -7 ------- Run | Scr Mat Mat Mat Fac Low Low Dat Peak Influence 294 | . 294 160 72 65 . . . Initial 124 | . . 124 67 2 . . . Average 79 | . 112 128 37 22 . . . Maximum Alert Level 1 | . 1 . . . . . . Low Security (%) 87 | . 71 100 100 100 . . . Level 1 12 | . 28 . . . . . . Level 2 . | . . . . . . . . Level 3 . | . . . . . . . . Level 4 . | . . . . . . . . Level 5 . | . . . . . . . . High Security . | . . . . . . . . Max Security . | . . . . . . . . Squads Dispatched 1 | . 1 . . . . . . Investigation 1 | . 1 . . . . . . Extermination . | . . . . . . . . Reinforcement . | . . . . . . . . Assault . | . . . . . . . . Garrison . | . . . . . . . . Intercept . | . . . . . . . . Construction Impeded . | . . . . . . . . Haulers Reinforced . | . . . . . . . . Stealth | -11 -10 -9 -8 -7 -7 -7 -7 --------- Run | Scr Mat Mat Mat Fac Low Low Dat Distress Signals . | . . . . . . . . Communications Jammed . | . . . . . . . . Distress Signals . | . . . . . . . . Times Spotted 33 | . 14 6 4 1 . 4 4 Peak Tracking Total 6 | . 6 6 4 1 . 4 4 Tactical Retreats 1 | . 1 . . . . . . Traps | -11 -10 -9 -8 -7 -7 -7 -7 ------- Run | Scr Mat Mat Mat Fac Low Low Dat Traps Triggered 1 | . 1 . . . . . . Indirectly . | . . . . . . . . Trap Hack Attempts . | . . . . . . . . Triggered . | . . . . . . . . Disarmed . | . . . . . . . . Reprogrammed . | . . . . . . . . Reused . | . . . . . . . . Traps Extracted . | . . . . . . . . Installed . | . . . . . . . . Triggered 2 | . . . . . 2 . . Machines | -11 -10 -9 -8 -7 -7 -7 -7 ---------- Run | Scr Mat Mat Mat Fac Low Low Dat Machines Disabled 1 | . 1 . . . . . . Max in Single Turn 1 | . 1 . . . . . . Machines Sabotaged . | . . . . . . . . Garrisons Compromised . | . . . . . . . . Overloaded Fab Kills . | . . . . . . . . Fab Network Shutdowns . | . . . . . . . . Hacking | -11 -10 -9 -8 -7 -7 -7 -7 --------- Run | Scr Mat Mat Mat Fac Low Low Dat Machines Accessed 14 | . 3 2 2 3 . . 4 Terminals 9 | . 3 2 2 2 . . . Fabricators . | . . . . . . . . Repair Stations . | . . . . . . . . Recycling Units . | . . . . . . . . Scanalyzers . | . . . . . . . . Garrison Access 1 | . . . . 1 . . . Total Hacks 63 | . 6 8 9 10 . . 30 Successful 42 | . 1 2 4 5 . . 30 Failed 21 | . 5 6 5 5 . . . Catastrophic 5 | . 2 3 . . . . . Database Lockouts . | . . . . . . . . Manual 23 | . 5 4 7 7 . . . Terminals 30 | . 6 8 9 7 . . . Fabricators . | . . . . . . . . Repair Stations . | . . . . . . . . Recycling Units . | . . . . . . . . Scanalyzers . | . . . . . . . . Garrison Access 3 | . . . . 3 . . . Terminal Hacks 40 | . 1 2 4 3 . . 30 Record 11 | . . . . . . . 11 Part Schematic 12 | . . . 1 2 . . 9 Robot Schematic 7 | . . . . . . . 7 Robot Analysis 1 | . . 1 . . . . . Prototype ID Bank 5 | . 1 1 . . . . 3 Branch Access Points 2 | . . . 1 1 . . . Emergency Access Points 1 | . . . 1 . . . . Unreport Threat 1 | . . . 1 . . . . Fabricator Hacks . | . . . . . . . . Repair Station Hacks . | . . . . . . . . Recycling Unit Hacks . | . . . . . . . . Scanalyzer . | . . . . . . . . Garrison Access Hacks . | . . . . . . . . Unauthorized Hacks 2 | . . . . 2 . . . Terminals 2 | . . . . 2 . . . Assimilate 1 | . . . . 1 . . . Botnet 1 | . . . . 1 . . . Fabricators . | . . . . . . . . Repair Stations . | . . . . . . . . Recycling Units . | . . . . . . . . Scanalyzers . | . . . . . . . . Garrison Access . | . . . . . . . . Data Cores Recovered 1 | . . . 1 . . . . Used 1 | . . . 1 . . . . Hacking Detections 10 | . 3 2 2 3 . . . Full Trace Events . | . . . . . . . . Feedback Events . | . . . . . . . . Feedback Blocked . | . . . . . . . . Robot Schematics Acquired 7 | . . . . . . . 7 Robots Built . | . . . . . . . . Matter . | . . . . . . . . Time . | . . . . . . . . Total Robot Build Rating . | . . . . . . . . Part Schematics Acquired 12 | . . . 1 2 . . 9 Parts Built . | . . . . . . . . Matter . | . . . . . . . . Time . | . . . . . . . . Total Part Build Rating . | . . . . . . . . Parts Repaired . | . . . . . . . . Time . | . . . . . . . . Parts Recycled . | . . . . . . . . Recycled Matter . | . . . . . . . . Retrieved Matter . | . . . . . . . . Retrieved Components . | . . . . . . . . Parts Scanalyzed . | . . . . . . . . Part Schematics Acquired . | . . . . . . . . Parts Damaged . | . . . . . . . . Bothacking | -11 -10 -9 -8 -7 -7 -7 -7 ------------ Run | Scr Mat Mat Mat Fac Low Low Dat Used RIF Installer . | . . . . . . . . Robots Hacked . | . . . . . . . . Non-combat . | . . . . . . . . Combat . | . . . . . . . . Robot Hacks Applied . | . . . . . . . . Relay Couplers Released . | . . . . . . . . Robots Rewired . | . . . . . . . . Allies Hacked . | . . . . . . . . Hacks Repelled . | . . . . . . . . Allies | -11 -10 -9 -8 -7 -7 -7 -7 -------- Run | Scr Mat Mat Mat Fac Low Low Dat Total Allies 1 | . . . . 1 . . . Largest Group 1 | . . . . 1 1 1 1 Highest-Rated Group 26 | . . . . 26 26 26 26 Highest-Rated Ally 26 | . . . . 26 26 26 26 Total Orders . | . . . . . . . . Ally Attacks . | . . . . . . . . Total Damage . | . . . . . . . . Kills . | . . . . . . . . Allies Corrupted . | . . . . . . . . Allies Melted . | . . . . . . . . Intel | -11 -10 -9 -8 -7 -7 -7 -7 ------- Run | Scr Mat Mat Mat Fac Low Low Dat Robot Analysis Total 116 | . . 1 . . . . 115 Derelict Logs Recovered 3 | . . . . . 2 1 . Drone Launches . | . . . . . . . . Drone Recoveries . | . . . . . . . . Exploration | -11 -10 -9 -8 -7 -7 -7 -7 ------------- Run | Scr Mat Mat Mat Fac Low Low Dat Turns Passed 2005 | . 389 125 98 260 385 527 221 Spaces Moved 1451 | 1 279 194 148 157 243 293 136 Core 2 | . . . . . . . 2 Treads 803 | . . . . 141 243 293 126 Legs 117 | 1 116 . . . . . . Wheels . | . . . . . . . . Hover 529 | . 163 194 148 16 . . 8 Flight . | . . . . . . . . Fastest Speed 52 | 120 56 52 52 52 157 156 56 Average Speed 116 | 120 85 52 52 147 157 156 150 Slowest Speed 165 | 120 130 52 52 160 157 157 165 Overloaded Moves . | . . . . . . . . Propulsion Burnouts . | . . . . . . . . Robots Hopped . | . . . . . . . . Cave-ins Triggered . | . . . . . . . . Exploration Rate (%) 36 | 3 62 23 18 5 50 50 77 Regions Visited 7 Branch Regions 3 Pre-discovered Areas 30 | . . . . . . . 30 Known Exits Taken 3 | . . . . 1 1 1 . Unknown Exits Taken 4 | 1 1 1 1 . . . . Scrap Searched 3 | . . . . . 2 1 . Spaces Dug . | . . . . . . . . Terrain Destroyed 6 | . 6 . . . . . . Melee . | . . . . . . . . Projectile . | . . . . . . . . AOE 6 | . 6 . . . . . . Terrain Rammed . | . . . . . . . . Walls Destroyed . | . . . . . . . . Machines Disabled . | . . . . . . . . Actions | -11 -10 -9 -8 -7 -7 -7 -7 --------- Run | Scr Mat Mat Mat Fac Low Low Dat Total 1678 | . 377 216 166 187 246 328 158 Wait 42 | . 23 1 11 4 . 3 . Move 1444 | . 278 193 147 156 242 292 136 Hop . | . . . . . . . . Pick Up 36 | . 10 5 1 11 2 5 2 Fast Attach 16 | . 7 3 3 2 . . 1 Attach 21 | . 2 3 1 6 . 4 5 Detach 11 | . 2 3 . 2 . . 4 Swap 6 | . 3 . . 1 2 . . Drop 36 | . 15 5 2 5 . . 9 Fire 64 | . 37 3 1 . . 23 . Melee 1 | . . . . . . . 1 Ram . | . . . . . . . . Kick . | . . . . . . . . Crush 1 | . . . . . . 1 . Escape Stasis . | . . . . . . . . Rewire . | . . . . . . . . Trap . | . . . . . . . . Miscellaneous . | . . . . . . . . Route ------- -11/Scrapyard -10/Materials (discovered 2 exits: *Mat x2) -9/Materials -8/Materials -7/Factory (discovered 3 exits: Sto / *Low x2) -7/Lower Caves -7/Lower Caves (discovered 2 exits: [*Fac] / *Dat) -7/Data Miner (discovered 1 exit: [*Pro]) History --------- Turn | Location | Event 1 | -11/Scrapyard | Discovered new exit (range 0) 1 | -11/Scrapyard | Entered Materials 149 | -10/Materials | Discovered new exit (range 16) 306 | -10/Materials | Build established: Mutant 338 | -10/Materials | Discovered new exit (range 11) 390 | -10/Materials | Entered another Materials area 390 | -9/Materials | Evolved 2 slots: Propulsion x1, Utility x1 509 | -9/Materials | Discovered new exit (range 9) 515 | -9/Materials | Entered another Materials area 515 | -8/Materials | Evolved 2 slots: Utility x2 609 | -8/Materials | Discovered new exit (range 9) 613 | -8/Materials | Entered Factory 613 | -7/Factory | Evolved 2 slots: Propulsion x2 747 | -7/Factory | Identified exit to Storage 747 | -7/Factory | Identified exit to Lower Caves 856 | -7/Factory | Build established: Hacker-Mutant 873 | -7/Factory | Entered Lower Caves 873 | -7/Lower Caves | Accompanied by 1 ally 877 | -7/Lower Caves | Learned 8 Factory zone layouts 888 | -7/Lower Caves | Encountered a Warlord checkpoint 915 | -7/Lower Caves | Learned Factory terminal intel 1241 | -7/Lower Caves | Discovered new exit (range 12) 1257 | -7/Lower Caves | Identified exit to Lower Caves 1258 | -7/Lower Caves | Entered another Lower Caves area 1258 | -7/Lower Caves | Accompanied by 1 ally 1371 | -7/Lower Caves | Discovered new exit (range 15) 1375 | -7/Lower Caves | Lost 4 parts (1p1n2w) 1396 | -7/Lower Caves | Build established: Mutant 1586 | -7/Lower Caves | Learned 4 Factory zone layouts 1771 | -7/Lower Caves | Discovered new exit (range 8) 1784 | -7/Lower Caves | Identified exit to Data Miner 1785 | -7/Lower Caves | Entered Data Miner 1785 | -7/Data Miner | Accompanied by 1 ally 1785 | -7/Data Miner | Discovered new exit (range 7) 1815 | -7/Data Miner | Met Data Miner 1843 | -7/Data Miner | Learned location of Section 7 (-2) 1843 | -7/Data Miner | Acquired the access code to Warlord's prototype stash 1868 | -7/Data Miner | Received God Mode back door access code from Data Miner 1964 | -7/Data Miner | Destroyed Data Miner 1966 | -7/Data Miner | Interfaced with the Data Conduit 1970 | -7/Data Miner | Found Prototype Hackware 1973 | -7/Data Miner | Found Prototype Hackware 1994 | -7/Data Miner | Core integrity fell below 50% 1999 | -7/Data Miner | Core integrity fell below 20% 2006 | -7/Data Miner | Destroyed by Enhanced Grunt with Neutron Cannon Last Messages --------------- 01976_ Administrator 4a suffers critical hit. 01979_ Administrator 4a destroyed. 01982_ Mic. Nuclear Core destroyed. 01985_ Imp. Treads destroyed. 01988_ Carbon-fiber Leg destroyed. 01989_ Minigun destroyed. 01989_ Imp. Treads destroyed. 01991_ Adv. Treads destroyed. 01991_ Dropped Adv. Weight Redist. System. 01992_ Great Axe destroyed. 01992_ Dropped Kinecellerator. 01993_ Dropped Imp. Medium Armor Plating. 01993_ Dropped Adv. Assault Cannon. 01995_ Dropped Imp. Heat Sink. 01996_ Dropped Adv. Assault Cannon. 01996_ Adv. Targeting Computer destroyed. 01998_ Lgt. Nuclear Core destroyed. 01999_ Dropped Lrg. Storage Unit. 02000_ Enhanced Grunt suffers critical hit. 02003_ Imp. Hover Unit destroyed. Map ----- +----------------------------------------------------+ | | | | | | | | | | | | | | | | | | | | | | | | | | | | | | | | | | | ???????????????????????????????????????????? | | ???????????????????????????????????????????? | | ???????????????????????????????????????????? | | ???????????????????????????????????????????? | | ???????????????????????????????####????????? | | ###############????#######?#?### #????????? | | """"""""""""""###### # # # ### #????????? | | """""" """"""""# # # # ##! < ##????????? | | """"""" g @ ;#####???? | | """" g #???? | | """" g #???? | | """% g #???? | | """" ]! ##???? | | """" !!! " """"""""""""""#####????? | | """"" %! !] """###############????????? | | """"" """"###??????????????????????? | | """"""" "#####????????????????????????? | | ######"#" "#????????????????????????????? | | ?????#"### "#????????????????????????????? | | ?????#"### "#????????????????????????????? | | ?????#"## "#????????????????????????????? | | ?????#?## "#????????????????????????????? | | ???????# "#????????????????????????????? | | ???????### "#????????????????????????????? | | ?????????# "##???????????????????????????? | | ????????## ""#???????????????????????????? | | ???????## ""#???????????????????????????? | | ????##"#"X ""#???????????????????????????? | | ????""""" "####????????????????????????? | | ????""""" X"""""????????????????????????? | | ????##"#"X "##"#????????????????????????? | | ?????#?## X""""#????????????????????????? | | ????????## "##"#????????????????????????? | +----------------------------------------------------+ Best States ------------- Heat Dissipation 45 Energy Generation 15 Energy Capacity 250 Matter Stores 300 Matter Capacity 300 Sight Range 16 Robot Scan Range 22 Terrain Scan Density 10 Propulsion Shielding 33 Evasion (%) 54 Targeting Accuracy 8 Recoil Reduction 5 Offensive Hacking 10 Defensive Hacking 10 Item Schematics ----------------- Adv. Sensor Array | -8/Materials | Hacked Lrn. Sensor Array | -7/Factory | Hacked Imp. Armor Integrity Analyzer | -7/Factory | Hacked Combat Drone Bay | -7/Data Miner | Free Lgt. Regenerative Plating | -7/Data Miner | Free Exp. Flexi-carbon Leg | -7/Data Miner | Free Cmb. Gravmag System | -7/Data Miner | Free Triangulator | -7/Data Miner | Free Tactical Coordination Suite | -7/Data Miner | Free Exp. Transmission Jammer | -7/Data Miner | Free Mni. Smartbomb Launcher | -7/Data Miner | Free Kinetic Spear | -7/Data Miner | Free Robot Schematics ------------------ S-27 Virus | -7/Data Miner | Free G-50 Soldier | -7/Data Miner | Free G-67 Veteran | -7/Data Miner | Free L-41 Fighter | -7/Data Miner | Free X-72 Disruptor | -7/Data Miner | Free P-70 Sage | -7/Data Miner | Free I-36 Angel | -7/Data Miner | Free Fabricated ------------ Nothing Alien Tech Used ----------------- None Achievements -------------- None Challenges ------------ None Game ------ Seed DimensionalOverloadActivator Manual? 0 Play Time 00:26:35 Cumulative 228.0 hours Start 2021.06.28 @ 13:16:55 End 2021.06.28 @ 13:41:45 Sessions 1 Manual Loads 0 Difficulty Rogue Special Mode None Game No. 126 Rogue 124 Adventurer 1 Explorer 1 Win Type - Total 3 Types 2/0/1/0/0/0/0/0/0 Lore% 67 Gallery% 79 Achievement% 58 Wizard Run 0 Options --------- ASCII 0 Keyboard 1 Movement Numpad Keybinds 1 Fullscreen 1 Font 24/Terminus Map View 76x50 Tactical HUD 1 Map Filters NONE Filters NONE Steam 1 RUN: 40fc11bb-5b80-4fbb-9afe-f47fc079d5b0